[Event "*** Titled Tuesday Blitz"]
[Site "Chess.com"]
[Date "2021.02.02"]
[Round "2"]
[White "IDontWannaRecognized"]
[Black "IMAghasiyevKamal"]
[Result "1-0"]
[WhiteElo "2272"]
[BlackElo "2600"]
[TimeControl "180+1"]
[EndTime "10:19:20 PST"]
[Termination "IDontWannaRecognized won on time"]

1. d4 {[%clk 0:03:00.9]} 1... d5 {[%clk 0:02:59.1]} 2. Bf4 {[%clk 0:03:01]} 2...
Nf6 {[%clk 0:02:57.5]} 3. e3 {[%clk 0:03:01.3]} 3... a6 {[%clk 0:02:55.1]} 4.
Nf3 {[%clk 0:03:00.7]} 4... e6 {[%clk 0:02:53.6]} 5. Nbd2 {[%clk 0:02:53.5]}
5... b5 {[%clk 0:02:53.1]} 6. Bd3 {[%clk 0:02:48.7]} 6... Bb7 {[%clk 0:02:50.3]}
7. Qe2 {[%clk 0:02:47.3]} 7... c5 {[%clk 0:02:42]} 8. c3 {[%clk 0:02:41.8]} 8...
Nbd7 {[%clk 0:02:24.9]} 9. Ne5 {[%clk 0:02:37.4]} 9... Be7 {[%clk 0:02:16.7]}
10. O-O {[%clk 0:02:02.6]} 10... O-O {[%clk 0:02:11.8]} 11. Qf3 {[%clk
0:01:46.2]} 11... Nxe5 {[%clk 0:01:47.7]} 12. dxe5 {[%clk 0:01:36.3]} 12... Nd7
{[%clk 0:01:47.6]} 13. Qh3 {[%clk 0:01:29.5]} 13... g6 {[%clk 0:01:44.9]} 14.
Nf3 {[%clk 0:01:29.3]} 14... Re8 {[%clk 0:01:21.9]} 15. Rfe1 {[%clk 0:01:23.5]}
15... Nf8 {[%clk 0:00:44.5]} 16. Rad1 {[%clk 0:01:06.8]} 16... Qc7 {[%clk
0:00:40]} 17. Qh6 {[%clk 0:00:58.1]} 17... Rad8 {[%clk 0:00:29.7]} 18. h4 {[%clk
0:00:51.8]} 18... Nd7 {[%clk 0:00:19.8]} 19. Ng5 {[%clk 0:00:30.1]} 19... Bxg5
{[%clk 0:00:08.1]} 20. hxg5 {[%clk 0:00:31]} 20... Nxe5 {[%clk 0:00:08.3]} 21.
Qh2 {[%clk 0:00:30.6]} 21... Ng4 {[%clk 0:00:01.8]} 22. Bxc7 {[%clk 0:00:30.1]}
22... Nxh2 {[%clk 0:00:02.7]} 23. Bxd8 {[%clk 0:00:25.6]} 23... Ng4 {[%clk
0:00:02.2]} 24. Bf6 {[%clk 0:00:20.7]} 1-0

[Event "*** Titled Tuesday Blitz"]
[Site "Chess.com"]
[Date "2021.02.02"]
[Round "2"]
[White "GOGIEFF"]
[Black "Chernobay_Artem"]
[Result "1-0"]
[WhiteElo "2912"]
[BlackElo "2577"]
[TimeControl "180+1"]
[EndTime "10:19:24 PST"]
[Termination "GOGIEFF won by resignation"]

1. d4 {[%clk 0:03:00.9]} 1... Nf6 {[%clk 0:02:58.5]} 2. c4 {[%clk 0:03:01.2]}
2... g6 {[%clk 0:02:57.3]} 3. Nc3 {[%clk 0:03:01]} 3... Bg7 {[%clk 0:02:57.1]}
4. e4 {[%clk 0:03:00.5]} 4... d6 {[%clk 0:02:56.4]} 5. Be2 {[%clk 0:03:00]} 5...
O-O {[%clk 0:02:56.1]} 6. Bg5 {[%clk 0:02:59.9]} 6... Na6 {[%clk 0:02:53]} 7.
Qd2 {[%clk 0:02:56.8]} 7... e5 {[%clk 0:02:51.9]} 8. d5 {[%clk 0:02:57.1]} 8...
Nc5 {[%clk 0:02:49.8]} 9. f3 {[%clk 0:02:56.7]} 9... a5 {[%clk 0:02:46.3]} 10.
g4 {[%clk 0:02:54.1]} 10... Bd7 {[%clk 0:02:20.3]} 11. Nh3 {[%clk 0:02:52]}
11... c6 {[%clk 0:02:12.5]} 12. Nf2 {[%clk 0:02:50.7]} 12... a4 {[%clk
0:02:08.9]} 13. h4 {[%clk 0:02:47]} 13... Qa5 {[%clk 0:02:06]} 14. h5 {[%clk
0:02:42.7]} 14... cxd5 {[%clk 0:02:05.5]} 15. cxd5 {[%clk 0:02:41]} 15... b5
{[%clk 0:01:35.4]} 16. h6 {[%clk 0:02:40.1]} 16... Bh8 {[%clk 0:01:33.2]} 17.
Ncd1 {[%clk 0:02:37.7]} 17... Rfc8 {[%clk 0:01:08.3]} 18. Qxa5 {[%clk
0:02:36.3]} 18... Rxa5 {[%clk 0:01:08]} 19. Rc1 {[%clk 0:02:29.1]} 19... Raa8
{[%clk 0:01:03.7]} 20. Be3 {[%clk 0:02:10]} 20... Ne8 {[%clk 0:01:02.7]} 21. g5
{[%clk 0:02:10.3]} 21... f6 {[%clk 0:00:59.7]} 22. Nh3 {[%clk 0:01:56.1]} 22...
fxg5 {[%clk 0:00:44.6]} 23. Nxg5 {[%clk 0:01:56.1]} 23... Bf6 {[%clk 0:00:44.4]}
24. Nf2 {[%clk 0:01:39]} 24... b4 {[%clk 0:00:38.8]} 25. O-O {[%clk 0:01:36.1]}
25... Bd8 {[%clk 0:00:24.9]} 26. Nd3 {[%clk 0:00:55.1]} 26... Bb5 {[%clk
0:00:22.7]} 27. Bxc5 {[%clk 0:00:53]} 27... dxc5 {[%clk 0:00:18.6]} 28. Ne6
{[%clk 0:00:52.5]} 28... Bxd3 {[%clk 0:00:12.5]} 29. Bxd3 {[%clk 0:00:52]} 29...
Bb6 {[%clk 0:00:10.9]} 30. Bb5 {[%clk 0:00:51.1]} 30... Nd6 {[%clk 0:00:10]} 31.
Bc6 {[%clk 0:00:51.4]} 31... Ra7 {[%clk 0:00:09.2]} 32. Kg2 {[%clk 0:00:50.6]}
32... Rf7 {[%clk 0:00:08.6]} 33. Nxc5 {[%clk 0:00:49.6]} 33... Rcf8 {[%clk
0:00:04.5]} 34. Ne6 {[%clk 0:00:49.2]} 34... Rc8 {[%clk 0:00:03.2]} 35. Bxa4
{[%clk 0:00:48.5]} 35... Rxc1 {[%clk 0:00:02]} 36. Rxc1 {[%clk 0:00:47.9]} 36...
Ra7 {[%clk 0:00:02.9]} 37. b3 {[%clk 0:00:47.6]} 37... Be3 {[%clk 0:00:01.9]}
38. Rc6 {[%clk 0:00:47.2]} 38... Nf7 {[%clk 0:00:02.1]} 39. Rc8+ {[%clk
0:00:47]} 1-0

[Event "*** Titled Tuesday Blitz"]
[Site "Chess.com"]
[Date "2021.02.02"]
[Round "2"]
[White "Kiborg95"]
[Black "leoduarte"]
[Result "1-0"]
[WhiteElo "2637"]
[BlackElo "2344"]
[TimeControl "180+1"]
[EndTime "10:19:25 PST"]
[Termination "Kiborg95 won by checkmate"]

1. e4 {[%clk 0:03:00.9]} 1... c5 {[%clk 0:02:59.5]} 2. Nc3 {[%clk 0:02:57.9]}
2... e6 {[%clk 0:02:49.3]} 3. Nf3 {[%clk 0:02:56.4]} 3... Nc6 {[%clk 0:02:48.6]}
4. d4 {[%clk 0:02:56.4]} 4... cxd4 {[%clk 0:02:48.5]} 5. Nxd4 {[%clk 0:02:57.3]}
5... Qc7 {[%clk 0:02:49.1]} 6. Be3 {[%clk 0:02:57.5]} 6... a6 {[%clk 0:02:48.4]}
7. f4 {[%clk 0:02:57.8]} 7... d6 {[%clk 0:02:20.2]} 8. Nb3 {[%clk 0:02:56.8]}
8... Nf6 {[%clk 0:02:18.6]} 9. Bd3 {[%clk 0:02:57.5]} 9... b5 {[%clk 0:02:15.4]}
10. O-O {[%clk 0:02:56.7]} 10... Bb7 {[%clk 0:02:15.6]} 11. Qf3 {[%clk
0:02:57.3]} 11... Be7 {[%clk 0:02:13.7]} 12. Qh3 {[%clk 0:02:57.7]} 12... Rc8
{[%clk 0:02:09.9]} 13. Rae1 {[%clk 0:02:55.2]} 13... h5 {[%clk 0:02:08.1]} 14.
Kh1 {[%clk 0:02:55.2]} 14... Ng4 {[%clk 0:01:47.6]} 15. Bg1 {[%clk 0:02:55.3]}
15... Bf6 {[%clk 0:01:37]} 16. Be2 {[%clk 0:02:48.5]} 16... g6 {[%clk
0:01:32.2]} 17. Bxg4 {[%clk 0:02:37.1]} 17... hxg4 {[%clk 0:01:31.7]} 18. Qxg4
{[%clk 0:02:38]} 18... Nb4 {[%clk 0:01:19.1]} 19. Nd4 {[%clk 0:02:08.9]} 19...
Ke7 {[%clk 0:01:04.7]} 20. e5 {[%clk 0:01:39.4]} 20... Bg7 {[%clk 0:00:38.5]}
21. f5 {[%clk 0:01:38]} 21... dxe5 {[%clk 0:00:19.8]} 22. fxe6 {[%clk
0:01:16.5]} 22... f6 {[%clk 0:00:17.6]} 23. Qxg6 {[%clk 0:01:09]} 23... exd4
{[%clk 0:00:16.7]} 24. Qxg7+ {[%clk 0:00:58.2]} 24... Kd6 {[%clk 0:00:17.2]} 25.
e7 {[%clk 0:00:47.6]} 25... Rcg8 {[%clk 0:00:11.4]} 26. Rxf6+ {[%clk 0:00:24.4]}
26... Kc5 {[%clk 0:00:07.9]} 27. Bxd4+ {[%clk 0:00:24.7]} 27... Kxd4 {[%clk
0:00:04]} 28. Rd6+ {[%clk 0:00:24.9]} 28... Kc5 {[%clk 0:00:02.1]} 29. Qd4#
{[%clk 0:00:25.6]} 1-0

[Event "*** Titled Tuesday Blitz"]
[Site "Chess.com"]
[Date "2021.02.02"]
[Round "2"]
[White "Eltaj_Safarli"]
[Black "Beltraxtor"]
[Result "1-0"]
[WhiteElo "2936"]
[BlackElo "2586"]
[TimeControl "180+1"]
[EndTime "10:19:26 PST"]
[Termination "Eltaj_Safarli won by resignation"]

1. e4 {[%clk 0:03:00.9]} 1... e5 {[%clk 0:02:58.2]} 2. Nf3 {[%clk 0:03:00.6]}
2... Nf6 {[%clk 0:02:58.9]} 3. Nc3 {[%clk 0:03:00.7]} 3... Nc6 {[%clk
0:02:58.8]} 4. a3 {[%clk 0:03:01.2]} 4... Be7 {[%clk 0:02:56]} 5. d4 {[%clk
0:03:00]} 5... exd4 {[%clk 0:02:54.3]} 6. Nxd4 {[%clk 0:03:00.9]} 6... O-O
{[%clk 0:02:52.8]} 7. Nxc6 {[%clk 0:03:01.4]} 7... bxc6 {[%clk 0:02:51]} 8. e5
{[%clk 0:03:01.8]} 8... Ne8 {[%clk 0:02:39.2]} 9. Bd3 {[%clk 0:03:01.6]} 9... d6
{[%clk 0:02:38.5]} 10. Bf4 {[%clk 0:02:59.3]} 10... Rb8 {[%clk 0:02:29.3]} 11.
Rb1 {[%clk 0:02:57.2]} 11... dxe5 {[%clk 0:02:12.2]} 12. Bxe5 {[%clk 0:02:58.1]}
12... Bd6 {[%clk 0:02:12.8]} 13. Qe2 {[%clk 0:02:50.4]} 13... Nf6 {[%clk
0:01:48.2]} 14. O-O {[%clk 0:02:49.4]} 14... Bxe5 {[%clk 0:01:02.3]} 15. Qxe5
{[%clk 0:02:50.3]} 15... Re8 {[%clk 0:01:02.9]} 16. Qc5 {[%clk 0:02:38]} 16...
Qd6 {[%clk 0:00:50.5]} 17. Qxa7 {[%clk 0:02:22.4]} 17... Ng4 {[%clk 0:00:45.9]}
18. g3 {[%clk 0:02:09.9]} 18... Be6 {[%clk 0:00:40.9]} 19. Ne4 {[%clk
0:02:06.2]} 19... Qe5 {[%clk 0:00:35.8]} 20. h3 {[%clk 0:01:47.2]} 20... Nf6
{[%clk 0:00:15.5]} 21. Qc5 {[%clk 0:01:44.3]} 21... Bd5 {[%clk 0:00:15.5]} 22.
Nc3 {[%clk 0:01:23]} 22... Qh5 {[%clk 0:00:07]} 23. Nxd5 {[%clk 0:01:19]} 23...
cxd5 {[%clk 0:00:06.6]} 24. Kg2 {[%clk 0:01:16.8]} 24... Ne4 {[%clk 0:00:05.2]}
25. Bxe4 {[%clk 0:01:13.6]} 25... Rxe4 {[%clk 0:00:06.1]} 26. Rfe1 {[%clk
0:01:08.5]} 26... Rbe8 {[%clk 0:00:04.4]} 27. Rxe4 {[%clk 0:01:06.5]} 27... Rxe4
{[%clk 0:00:05.3]} 28. Qxc7 {[%clk 0:01:03.9]} 28... g6 {[%clk 0:00:04.7]} 29.
Qc8+ {[%clk 0:01:01.1]} 29... Kg7 {[%clk 0:00:04.8]} 30. Qc3+ {[%clk 0:01:01.7]}
30... Kg8 {[%clk 0:00:02.8]} 31. Re1 {[%clk 0:01:00.2]} 31... Qf5 {[%clk
0:00:02.3]} 32. Rxe4 {[%clk 0:00:56.8]} 32... Qxe4+ {[%clk 0:00:03.2]} 33. Kg1
{[%clk 0:00:57.3]} 33... Qe2 {[%clk 0:00:03.2]} 34. a4 {[%clk 0:00:54.3]} 34...
h5 {[%clk 0:00:03.6]} 35. h4 {[%clk 0:00:54.2]} 35... Kh7 {[%clk 0:00:02.5]} 36.
Qd3 {[%clk 0:00:51.6]} 36... Qe1+ {[%clk 0:00:02.1]} 37. Kg2 {[%clk 0:00:52.1]}
37... Qe5 {[%clk 0:00:02.5]} 38. b4 {[%clk 0:00:52.5]} 38... Qb8 {[%clk
0:00:01.4]} 39. b5 {[%clk 0:00:51.1]} 39... Qa8 {[%clk 0:00:02.1]} 40. Qd4
{[%clk 0:00:51.4]} 40... Kg8 {[%clk 0:00:01.9]} 41. b6 {[%clk 0:00:51.9]} 1-0

[Event "*** Titled Tuesday Blitz"]
[Site "Chess.com"]
[Date "2021.02.02"]
[Round "2"]
[White "The_Machine04"]
[Black "DenLaz"]
[Result "0-1"]
[WhiteElo "2531"]
[BlackElo "2836"]
[TimeControl "180+1"]
[EndTime "10:19:27 PST"]
[Termination "DenLaz won by checkmate"]

1. d4 {[%clk 0:03:00.9]} 1... d5 {[%clk 0:02:58]} 2. Bf4 {[%clk 0:02:59.9]} 2...
Nf6 {[%clk 0:02:53.1]} 3. e3 {[%clk 0:02:59.6]} 3... e6 {[%clk 0:02:53]} 4. Nf3
{[%clk 0:02:58]} 4... Bd6 {[%clk 0:02:53]} 5. Ne5 {[%clk 0:02:57.2]} 5... O-O
{[%clk 0:02:51.6]} 6. Nd2 {[%clk 0:02:56.4]} 6... c5 {[%clk 0:02:50.8]} 7. c3
{[%clk 0:02:56.4]} 7... Qc7 {[%clk 0:02:50.1]} 8. Bg3 {[%clk 0:02:56.3]} 8...
Nc6 {[%clk 0:02:40.3]} 9. f4 {[%clk 0:02:55.8]} 9... Ne7 {[%clk 0:02:39.4]} 10.
Bd3 {[%clk 0:02:52.6]} 10... b6 {[%clk 0:02:28.2]} 11. Bf2 {[%clk 0:02:48.9]}
11... Bb7 {[%clk 0:02:21.4]} 12. Qf3 {[%clk 0:02:47.9]} 12... b5 {[%clk
0:02:13.4]} 13. g4 {[%clk 0:02:41.6]} 13... b4 {[%clk 0:02:11.9]} 14. g5 {[%clk
0:02:14.6]} 14... Ne4 {[%clk 0:01:59]} 15. Nxe4 {[%clk 0:01:50.5]} 15... dxe4
{[%clk 0:01:57.1]} 16. Bxe4 {[%clk 0:01:51.4]} 16... Bxe4 {[%clk 0:01:36.3]} 17.
Qxe4 {[%clk 0:01:52.3]} 17... bxc3 {[%clk 0:01:36.9]} 18. bxc3 {[%clk
0:01:52.3]} 18... cxd4 {[%clk 0:01:37.5]} 19. cxd4 {[%clk 0:01:53.2]} 19... Qc3+
{[%clk 0:01:36.9]} 20. Ke2 {[%clk 0:01:52.2]} 20... Bxe5 {[%clk 0:01:34.9]} 21.
fxe5 {[%clk 0:01:37.9]} 21... Rab8 {[%clk 0:01:32.5]} 22. Rab1 {[%clk
0:01:31.5]} 22... Nd5 {[%clk 0:01:25.7]} 23. Kf3 {[%clk 0:01:27.4]} 23... Qc4
{[%clk 0:01:01.1]} 24. Rxb8 {[%clk 0:01:21.2]} 24... Rxb8 {[%clk 0:01:00]} 25.
Rb1 {[%clk 0:01:21.7]} 25... Rc8 {[%clk 0:00:58.4]} 26. Rb7 {[%clk 0:01:14.7]}
26... Nc3 {[%clk 0:00:42.6]} 27. Rb2 {[%clk 0:00:35.5]} 27... Nxe4 {[%clk
0:00:40.4]} 28. Kxe4 {[%clk 0:00:36.4]} 28... Qc6+ {[%clk 0:00:33.5]} 29. Kf4
{[%clk 0:00:35.3]} 29... Qg2 {[%clk 0:00:33.3]} 30. h4 {[%clk 0:00:27.9]} 30...
h6 {[%clk 0:00:31.1]} 31. gxh6 {[%clk 0:00:24.1]} 31... gxh6 {[%clk 0:00:30.6]}
32. Rd2 {[%clk 0:00:14.3]} 32... h5 {[%clk 0:00:30.5]} 33. e4 {[%clk 0:00:13.3]}
33... Qg4+ {[%clk 0:00:29]} 34. Ke3 {[%clk 0:00:13.8]} 34... Rc3+ {[%clk
0:00:29.7]} 35. Rd3 {[%clk 0:00:14.5]} 35... Qh3+ {[%clk 0:00:30.4]} 36. Kd2
{[%clk 0:00:12.7]} 36... Qxd3+ {[%clk 0:00:29.3]} 37. Ke1 {[%clk 0:00:13.6]}
37... Rc1# {[%clk 0:00:30.2]} 0-1

[Event "*** Titled Tuesday Blitz"]
[Site "Chess.com"]
[Date "2021.02.02"]
[Round "2"]
[White "almo64"]
[Black "IljaJoke"]
[Result "0-1"]
[WhiteElo "2707"]
[BlackElo "2510"]
[TimeControl "180+1"]
[EndTime "10:19:27 PST"]
[Termination "IljaJoke won on time"]

1. d4 {[%clk 0:02:58]} 1... d5 {[%clk 0:02:59.8]} 2. Nc3 {[%clk 0:02:57.6]} 2...
Nf6 {[%clk 0:02:58.2]} 3. Bf4 {[%clk 0:02:57.3]} 3... c5 {[%clk 0:02:43.9]} 4.
e3 {[%clk 0:02:56.9]} 4... cxd4 {[%clk 0:02:39.1]} 5. exd4 {[%clk 0:02:57.1]}
5... a6 {[%clk 0:02:39.5]} 6. Nf3 {[%clk 0:02:56.6]} 6... Nc6 {[%clk 0:02:36]}
7. Ne5 {[%clk 0:02:56.3]} 7... Bd7 {[%clk 0:02:34.1]} 8. g4 {[%clk 0:02:53.3]}
8... e6 {[%clk 0:02:20.4]} 9. g5 {[%clk 0:02:53.3]} 9... Ne4 {[%clk 0:02:19.1]}
10. Nxe4 {[%clk 0:02:47.4]} 10... dxe4 {[%clk 0:02:20]} 11. h4 {[%clk
0:02:34.1]} 11... Rc8 {[%clk 0:02:05.2]} 12. c3 {[%clk 0:02:33.4]} 12... Nxe5
{[%clk 0:01:46.1]} 13. Bxe5 {[%clk 0:02:31]} 13... Bc6 {[%clk 0:01:46.4]} 14.
Rh3 {[%clk 0:02:02.9]} 14... h6 {[%clk 0:01:26.7]} 15. g6 {[%clk 0:01:52.3]}
15... f6 {[%clk 0:01:26.8]} 16. Bg3 {[%clk 0:01:32.8]} 16... Bd6 {[%clk
0:01:26.4]} 17. Qb3 {[%clk 0:01:01.7]} 17... Bd5 {[%clk 0:01:11.7]} 18. c4
{[%clk 0:01:01.6]} 18... Qa5+ {[%clk 0:01:10.8]} 19. Kd1 {[%clk 0:01:01.9]}
19... Bc6 {[%clk 0:01:02.9]} 20. Bxd6 {[%clk 0:00:59.8]} 20... Ba4 {[%clk
0:01:02.6]} 21. Kc2 {[%clk 0:00:41.3]} 21... Kd7 {[%clk 0:01:00.2]} 22. c5
{[%clk 0:00:35.9]} 22... Rhd8 {[%clk 0:00:53.4]} 23. Bc4 {[%clk 0:00:35.1]}
23... Bxb3+ {[%clk 0:00:40.7]} 24. Rxb3 {[%clk 0:00:34.2]} 24... b5 {[%clk
0:00:39.9]} 25. Be2 {[%clk 0:00:13]} 25... Ke8 {[%clk 0:00:37.7]} 26. Kd1 {[%clk
0:00:07.9]} 26... Qa4 {[%clk 0:00:36.1]} 27. Ke1 {[%clk 0:00:05.9]} 27... Rxd6
{[%clk 0:00:25.5]} 28. cxd6 {[%clk 0:00:05.7]} 28... Kd7 {[%clk 0:00:26]} 29.
Rd1 {[%clk 0:00:02.3]} 29... Rc2 {[%clk 0:00:25.8]} 30. Ra3 {[%clk 0:00:01.8]}
30... Qb4+ {[%clk 0:00:25.5]} 31. Kf1 {[%clk 0:00:02.1]} 31... Qxd6 {[%clk
0:00:25.5]} 0-1

[Event "*** Titled Tuesday Blitz"]
[Site "Chess.com"]
[Date "2021.02.02"]
[Round "2"]
[White "ApacheSVD"]
[Black "kenta1234"]
[Result "0-1"]
[WhiteElo "2432"]
[BlackElo "2674"]
[TimeControl "180+1"]
[EndTime "10:19:27 PST"]
[Termination "kenta1234 won by resignation"]

1. e4 {[%clk 0:03:00.9]} 1... c5 {[%clk 0:02:53.1]} 2. Nc3 {[%clk 0:03:00.3]}
2... Nc6 {[%clk 0:02:51]} 3. g3 {[%clk 0:02:53.9]} 3... g6 {[%clk 0:02:50.9]} 4.
Bg2 {[%clk 0:02:54.1]} 4... Bg7 {[%clk 0:02:51.4]} 5. d3 {[%clk 0:02:54.6]} 5...
d6 {[%clk 0:02:51.4]} 6. Be3 {[%clk 0:02:54.7]} 6... Rb8 {[%clk 0:02:52]} 7.
Nge2 {[%clk 0:02:53.5]} 7... b5 {[%clk 0:02:52.3]} 8. Qd2 {[%clk 0:02:53.9]}
8... b4 {[%clk 0:02:52.7]} 9. Nd1 {[%clk 0:02:54.1]} 9... Nf6 {[%clk 0:02:52.5]}
10. h3 {[%clk 0:02:53.6]} 10... O-O {[%clk 0:02:52.5]} 11. f4 {[%clk 0:02:53.3]}
11... Nd7 {[%clk 0:02:48.1]} 12. O-O {[%clk 0:02:52.8]} 12... Nd4 {[%clk
0:02:47.5]} 13. c3 {[%clk 0:02:47.2]} 13... bxc3 {[%clk 0:02:39.9]} 14. bxc3
{[%clk 0:02:48.1]} 14... Nxe2+ {[%clk 0:02:40.3]} 15. Qxe2 {[%clk 0:02:49]}
15... Ba6 {[%clk 0:02:41]} 16. Qd2 {[%clk 0:02:43.4]} 16... Qa5 {[%clk
0:02:37.7]} 17. Rf2 {[%clk 0:02:35.4]} 17... Nb6 {[%clk 0:02:32.1]} 18. f5
{[%clk 0:02:30.7]} 18... Na4 {[%clk 0:02:31.3]} 19. Rc1 {[%clk 0:02:13.3]} 19...
Qc7 {[%clk 0:02:24.1]} 20. Bh6 {[%clk 0:02:04.6]} 20... Bb5 {[%clk 0:01:41.4]}
21. Bxg7 {[%clk 0:01:56.1]} 21... Kxg7 {[%clk 0:01:41.5]} 22. c4 {[%clk
0:01:53.4]} 22... Bc6 {[%clk 0:01:39.9]} 23. Nc3 {[%clk 0:01:48.6]} 23... Nb6
{[%clk 0:01:39.7]} 24. Rcf1 {[%clk 0:01:34.1]} 24... Nd7 {[%clk 0:01:34]} 25. g4
{[%clk 0:01:28.1]} 25... f6 {[%clk 0:01:19.8]} 26. g5 {[%clk 0:01:21.7]} 26...
Ne5 {[%clk 0:01:16.6]} 27. gxf6+ {[%clk 0:01:16.6]} 27... exf6 {[%clk
0:01:16.7]} 28. fxg6 {[%clk 0:01:15.5]} 28... hxg6 {[%clk 0:01:17.6]} 29. Ne2
{[%clk 0:00:57.9]} 29... Qe7 {[%clk 0:01:11.2]} 30. Nf4 {[%clk 0:00:50.9]} 30...
Rh8 {[%clk 0:01:08.7]} 31. Qe3 {[%clk 0:00:46.3]} 31... g5 {[%clk 0:01:00.8]}
32. Qg3 {[%clk 0:00:43.8]} 32... Rh4 {[%clk 0:00:58.2]} 33. Nd5 {[%clk
0:00:32.3]} 33... Bxd5 {[%clk 0:00:57.1]} 34. cxd5 {[%clk 0:00:29.3]} 34... Rbh8
{[%clk 0:00:51.8]} 35. Rxf6 {[%clk 0:00:22.4]} 35... Qxf6 {[%clk 0:00:52.7]} 36.
Rxf6 {[%clk 0:00:22.5]} 36... Kxf6 {[%clk 0:00:53.6]} 37. Qf2+ {[%clk
0:00:20.3]} 37... Rf4 {[%clk 0:00:52.9]} 38. Qb2 {[%clk 0:00:20]} 38... g4
{[%clk 0:00:51.1]} 39. hxg4 {[%clk 0:00:19.4]} 39... Rxg4 {[%clk 0:00:51.1]} 40.
Qf2+ {[%clk 0:00:10.7]} 40... Ke7 {[%clk 0:00:50.9]} 41. Kf1 {[%clk 0:00:08.6]}
41... Rf8 {[%clk 0:00:49.5]} 42. Qxf8+ {[%clk 0:00:05.4]} 42... Kxf8 {[%clk
0:00:49.6]} 0-1

[Event "*** Titled Tuesday Blitz"]
[Site "Chess.com"]
[Date "2021.02.02"]
[Round "2"]
[White "motivated_bishop"]
[Black "leejunhyeok"]
[Result "0-1"]
[WhiteElo "2382"]
[BlackElo "2649"]
[TimeControl "180+1"]
[EndTime "10:19:28 PST"]
[Termination "leejunhyeok won by checkmate"]

1. d4 {[%clk 0:03:00.9]} 1... d5 {[%clk 0:02:59.8]} 2. c4 {[%clk 0:03:00.6]}
2... e6 {[%clk 0:03:00]} 3. Nc3 {[%clk 0:03:00.4]} 3... a6 {[%clk 0:03:00.2]} 4.
cxd5 {[%clk 0:02:58.3]} 4... exd5 {[%clk 0:03:01.1]} 5. Nf3 {[%clk 0:02:58.5]}
5... h6 {[%clk 0:03:01.2]} 6. Bf4 {[%clk 0:02:58]} 6... Nf6 {[%clk 0:03:00.7]}
7. e3 {[%clk 0:02:58.3]} 7... Bd6 {[%clk 0:03:00.8]} 8. Bxd6 {[%clk 0:02:54.9]}
8... Qxd6 {[%clk 0:03:01.7]} 9. Bd3 {[%clk 0:02:55.2]} 9... Bg4 {[%clk
0:03:01.2]} 10. h3 {[%clk 0:02:53.9]} 10... Bxf3 {[%clk 0:03:01.5]} 11. Qxf3
{[%clk 0:02:53.7]} 11... Nbd7 {[%clk 0:03:01.8]} 12. O-O {[%clk 0:02:53.4]}
12... O-O {[%clk 0:03:01.6]} 13. Rfc1 {[%clk 0:02:50.3]} 13... c6 {[%clk
0:03:01.1]} 14. g4 {[%clk 0:02:28.9]} 14... Rfe8 {[%clk 0:02:58.6]} 15. Kh1
{[%clk 0:02:19.9]} 15... c5 {[%clk 0:01:51.9]} 16. dxc5 {[%clk 0:01:58.3]} 16...
Nxc5 {[%clk 0:01:51.5]} 17. Rd1 {[%clk 0:01:49.1]} 17... Rad8 {[%clk 0:01:50.5]}
18. Rac1 {[%clk 0:01:41.1]} 18... Qe5 {[%clk 0:01:45.4]} 19. Bf5 {[%clk
0:01:33.5]} 19... g6 {[%clk 0:01:33.4]} 20. Bb1 {[%clk 0:01:30.5]} 20... Kg7
{[%clk 0:01:04.9]} 21. Kg2 {[%clk 0:01:28.4]} 21... Nce4 {[%clk 0:00:56.1]} 22.
Rd4 {[%clk 0:01:24.3]} 22... h5 {[%clk 0:00:55.4]} 23. gxh5 {[%clk 0:01:08.2]}
23... Nxc3 {[%clk 0:00:41.4]} 24. Rxc3 {[%clk 0:01:01.5]} 24... Nxh5 {[%clk
0:00:39.5]} 25. Rc5 {[%clk 0:00:42.9]} 25... Nf6 {[%clk 0:00:28.3]} 26. b4
{[%clk 0:00:40.1]} 26... Re6 {[%clk 0:00:27.5]} 27. Bc2 {[%clk 0:00:38.2]} 27...
Rdd6 {[%clk 0:00:25.1]} 28. Bb3 {[%clk 0:00:36.2]} 28... Ne4 {[%clk 0:00:25.2]}
29. Rc8 {[%clk 0:00:31.4]} 29... Rf6 {[%clk 0:00:23.3]} 30. Rxe4 {[%clk
0:00:23.4]} 30... dxe4 {[%clk 0:00:20.9]} 31. Qe2 {[%clk 0:00:22.1]} 31... Qg5+
{[%clk 0:00:19.6]} 32. Kh1 {[%clk 0:00:17.8]} 32... Rf3 {[%clk 0:00:16.9]} 33.
Rc7 {[%clk 0:00:12.2]} 33... Rxh3# {[%clk 0:00:15.5]} 0-1

[Event "*** Titled Tuesday Blitz"]
[Site "Chess.com"]
[Date "2021.02.02"]
[Round "2"]
[White "DanilNajdin"]
[Black "ZenBull"]
[Result "1-0"]
[WhiteElo "2453"]
[BlackElo "2234"]
[TimeControl "180+1"]
[EndTime "10:19:29 PST"]
[Termination "DanilNajdin won on time"]

1. e4 {[%clk 0:03:00.9]} 1... c5 {[%clk 0:02:59.2]} 2. Nf3 {[%clk 0:03:00.8]}
2... e6 {[%clk 0:02:59.3]} 3. d4 {[%clk 0:03:00.6]} 3... cxd4 {[%clk 0:03:00.2]}
4. Nxd4 {[%clk 0:03:01.1]} 4... Nc6 {[%clk 0:03:00.9]} 5. Nxc6 {[%clk
0:03:01.3]} 5... bxc6 {[%clk 0:03:00.3]} 6. Bd3 {[%clk 0:03:02.2]} 6... d5
{[%clk 0:02:57.8]} 7. Nd2 {[%clk 0:03:02.2]} 7... Nf6 {[%clk 0:02:57.7]} 8. O-O
{[%clk 0:03:02.4]} 8... Be7 {[%clk 0:02:56.9]} 9. b3 {[%clk 0:03:01.6]} 9... Qc7
{[%clk 0:02:53.4]} 10. Bb2 {[%clk 0:03:00.6]} 10... c5 {[%clk 0:02:52.9]} 11. f4
{[%clk 0:02:52.7]} 11... c4 {[%clk 0:02:50.4]} 12. bxc4 {[%clk 0:02:50.5]} 12...
dxe4 {[%clk 0:02:47.4]} 13. Bxf6 {[%clk 0:02:37.8]} 13... Bxf6 {[%clk
0:02:42.4]} 14. Bxe4 {[%clk 0:02:37.9]} 14... Bb7 {[%clk 0:02:25.4]} 15. Rb1
{[%clk 0:02:32.3]} 15... Bxe4 {[%clk 0:02:14.4]} 16. Nxe4 {[%clk 0:02:33.2]}
16... Be7 {[%clk 0:02:08.7]} 17. f5 {[%clk 0:01:28.2]} 17... exf5 {[%clk
0:02:08.2]} 18. Rxf5 {[%clk 0:01:29.1]} 18... O-O {[%clk 0:02:07.3]} 19. c5
{[%clk 0:01:22.7]} 19... Rab8 {[%clk 0:01:49.6]} 20. Rb3 {[%clk 0:01:17.4]}
20... Rfd8 {[%clk 0:01:30.9]} 21. Rxb8 {[%clk 0:01:16.7]} 21... Qxb8 {[%clk
0:01:26.1]} 22. Rd5 {[%clk 0:01:15.5]} 22... Rxd5 {[%clk 0:00:49.2]} 23. Qxd5
{[%clk 0:01:16.4]} 23... Qb1+ {[%clk 0:00:45.2]} 24. Kf2 {[%clk 0:01:15.8]}
24... Qxc2+ {[%clk 0:00:45.3]} 25. Kf3 {[%clk 0:01:10.5]} 25... Qc1 {[%clk
0:00:20.7]} 26. c6 {[%clk 0:00:57.1]} 26... Qf1+ {[%clk 0:00:10.8]} 27. Kg3
{[%clk 0:00:56.9]} 27... Qc1 {[%clk 0:00:05.7]} 28. Kf3 {[%clk 0:00:27.1]} 28...
h6 {[%clk 0:00:05.5]} 29. Qd7 {[%clk 0:00:19.6]} 29... Qf1+ {[%clk 0:00:01.7]}
30. Nf2 {[%clk 0:00:19.7]} 1-0